[Event "Late-Titled-Tuesday-Blitz-April-23-2024"]
[Site "Chess.com"]
[Date "2024.04.23"]
[Round "9"]
[White "Naruna_Chan"]
[Black "kai_nov"]
[Result "0-1"]
[WhiteElo "2408"]
[BlackElo "2287"]
[TimeControl "180+1"]
[EndTime "15:46:00 PDT"]
[Termination "kai_nov won by resignation"]

1. e4 {[%clk 0:03:00.9]} 1... c5 {[%clk 0:02:59.7]} 2. c3 {[%clk 0:03:00.2]}
2... Nf6 {[%clk 0:02:56.4]} 3. e5 {[%clk 0:02:59.9]} 3... Nd5 {[%clk 0:02:54.8]}
4. Bc4 {[%clk 0:03:00.6]} 4... Nb6 {[%clk 0:02:30.9]} 5. Bb3 {[%clk 0:02:59.4]}
5... d5 {[%clk 0:02:23.1]} 6. d4 {[%clk 0:02:57.3]} 6... cxd4 {[%clk 0:02:14.3]}
7. cxd4 {[%clk 0:02:58.2]} 7... Bf5 {[%clk 0:02:14.5]} 8. Nf3 {[%clk 0:02:55.5]}
8... e6 {[%clk 0:02:11.2]} 9. O-O {[%clk 0:02:54.4]} 9... Nc6 {[%clk 0:02:08.2]}
10. h3 {[%clk 0:02:50.8]} 10... Be7 {[%clk 0:02:03.8]} 11. Nc3 {[%clk
0:02:45.6]} 11... O-O {[%clk 0:02:03.6]} 12. Bc2 {[%clk 0:02:38.1]} 12... Bxc2
{[%clk 0:01:55.2]} 13. Qxc2 {[%clk 0:02:37.8]} 13... Rc8 {[%clk 0:01:32]} 14.
Qe2 {[%clk 0:02:29.7]} 14... Nd7 {[%clk 0:01:25.9]} 15. Rd1 {[%clk 0:02:28.3]}
15... a6 {[%clk 0:01:23]} 16. Be3 {[%clk 0:02:16.4]} 16... b5 {[%clk 0:01:22.2]}
17. Qd2 {[%clk 0:02:14.6]} 17... Na5 {[%clk 0:01:16.3]} 18. Rac1 {[%clk
0:02:00.5]} 18... Nc4 {[%clk 0:01:15.1]} 19. Qe2 {[%clk 0:02:00.3]} 19... b4
{[%clk 0:01:00.1]} 20. Nb1 {[%clk 0:01:59.7]} 20... Qa5 {[%clk 0:00:50.5]} 21.
b3 {[%clk 0:01:53.6]} 21... Nxe3 {[%clk 0:00:47.3]} 22. fxe3 {[%clk 0:01:51.4]}
22... f6 {[%clk 0:00:40.2]} 23. Qb2 {[%clk 0:01:31.8]} 23... fxe5 {[%clk
0:00:37.1]} 24. dxe5 {[%clk 0:01:31.6]} 24... Nc5 {[%clk 0:00:24.6]} 25. Nd4
{[%clk 0:01:01.4]} 25... Qb6 {[%clk 0:00:21.3]} 26. Kh1 {[%clk 0:00:51.9]} 26...
Ne4 {[%clk 0:00:20.1]} 27. Rf1 {[%clk 0:00:44.4]} 27... Ng3+ {[%clk 0:00:18.2]}
28. Kg1 {[%clk 0:00:44.5]} 28... Nxf1 {[%clk 0:00:17.5]} 29. Rxf1 {[%clk
0:00:45.4]} 29... Rxf1+ {[%clk 0:00:17]} 30. Kxf1 {[%clk 0:00:46.3]} 30... Bc5
{[%clk 0:00:15.1]} 31. Nd2 {[%clk 0:00:41.7]} 31... Bxd4 {[%clk 0:00:14.7]} 32.
exd4 {[%clk 0:00:42.6]} 32... Qb5+ {[%clk 0:00:13.8]} 33. Kg1 {[%clk 0:00:39.3]}
33... Qe2 {[%clk 0:00:13]} 34. Kh2 {[%clk 0:00:31.5]} 34... Rc3 {[%clk
0:00:11.8]} 35. a3 {[%clk 0:00:26.7]} 35... Rd3 {[%clk 0:00:09.5]} 36. Nc4
{[%clk 0:00:25.9]} 36... Qxb2 {[%clk 0:00:09]} 37. Nxb2 {[%clk 0:00:26.8]} 37...
Rxb3 {[%clk 0:00:09.3]} 38. Na4 {[%clk 0:00:24.7]} 38... bxa3 {[%clk 0:00:09.2]}
0-1

[Event "Late-Titled-Tuesday-Blitz-April-23-2024"]
[Site "Chess.com"]
[Date "2024.04.23"]
[Round "9"]
[White "GMBenjaminBok"]
[Black "topotun"]
[Result "0-1"]
[WhiteElo "3028"]
[BlackElo "2884"]
[TimeControl "180+1"]
[EndTime "15:46:07 PDT"]
[Termination "topotun won on time"]

1. d4 {[%clk 0:03:00.9]} 1... Nf6 {[%clk 0:02:59.7]} 2. c4 {[%clk 0:03:01]} 2...
c5 {[%clk 0:03:00.2]} 3. Nf3 {[%clk 0:03:00.5]} 3... cxd4 {[%clk 0:02:57.7]} 4.
Nxd4 {[%clk 0:03:01.4]} 4... Nc6 {[%clk 0:02:58.3]} 5. Nc3 {[%clk 0:03:01]} 5...
g6 {[%clk 0:02:50.4]} 6. g3 {[%clk 0:03:00.5]} 6... d6 {[%clk 0:02:50.4]} 7. Bg2
{[%clk 0:03:00.3]} 7... Bd7 {[%clk 0:02:51.1]} 8. O-O {[%clk 0:02:51.4]} 8...
Bg7 {[%clk 0:02:51.5]} 9. b3 {[%clk 0:02:35.9]} 9... h5 {[%clk 0:02:50.8]} 10.
h4 {[%clk 0:02:28.9]} 10... Ng4 {[%clk 0:02:50.9]} 11. e3 {[%clk 0:02:20.6]}
11... O-O {[%clk 0:02:48.6]} 12. Bb2 {[%clk 0:02:18.6]} 12... Rb8 {[%clk
0:02:40.5]} 13. Nd5 {[%clk 0:02:09.9]} 13... Nge5 {[%clk 0:02:34.5]} 14. Rc1
{[%clk 0:02:01.6]} 14... a6 {[%clk 0:02:23.5]} 15. Qe2 {[%clk 0:01:55.6]} 15...
e6 {[%clk 0:02:21.9]} 16. Nf4 {[%clk 0:01:46.9]} 16... Qa5 {[%clk 0:02:06.9]}
17. Rfd1 {[%clk 0:01:37.9]} 17... Rfd8 {[%clk 0:02:06.2]} 18. Bc3 {[%clk
0:01:28.3]} 18... Qc5 {[%clk 0:01:54.4]} 19. Qb2 {[%clk 0:01:21.3]} 19... Qb6
{[%clk 0:01:33.9]} 20. Qa1 {[%clk 0:00:41.4]} 20... Rbc8 {[%clk 0:01:29.4]} 21.
Bb2 {[%clk 0:00:37]} 21... Ne7 {[%clk 0:01:16.9]} 22. Rd2 {[%clk 0:00:22]} 22...
Ng4 {[%clk 0:01:04.7]} 23. Rcd1 {[%clk 0:00:14.1]} 23... e5 {[%clk 0:00:41.7]}
24. Nde2 {[%clk 0:00:13.6]} 24... Nf5 {[%clk 0:00:41.5]} 25. Nd5 {[%clk
0:00:12.7]} 25... Qc5 {[%clk 0:00:38.9]} 26. Nec3 {[%clk 0:00:11.9]} 26... Be6
{[%clk 0:00:33.5]} 27. Ne4 {[%clk 0:00:12]} 27... Qa7 {[%clk 0:00:33.5]} 28. Re1
{[%clk 0:00:04.7]} 28... b5 {[%clk 0:00:32]} 29. cxb5 {[%clk 0:00:03.9]} 29...
axb5 {[%clk 0:00:32.9]} 30. Bf3 {[%clk 0:00:03.4]} 30... b4 {[%clk 0:00:15.4]}
31. Bxg4 {[%clk 0:00:03.3]} 31... hxg4 {[%clk 0:00:16.3]} 32. Ndf6+ {[%clk
0:00:03.2]} 32... Kf8 {[%clk 0:00:13]} 33. Nxg4 {[%clk 0:00:03.3]} 33... Qb7
{[%clk 0:00:12]} 34. Ngf6 {[%clk 0:00:02.8]} 34... Ke7 {[%clk 0:00:10.9]} 0-1

[Event "Late-Titled-Tuesday-Blitz-April-23-2024"]
[Site "Chess.com"]
[Date "2024.04.23"]
[Round "9"]
[White "Nimrod_Veinberg"]
[Black "Ajedrez_con_German"]
[Result "1-0"]
[WhiteElo "2818"]
[BlackElo "2645"]
[TimeControl "180+1"]
[EndTime "15:46:10 PDT"]
[Termination "Nimrod_Veinberg won on time"]

1. e4 {[%clk 0:03:00.9]} 1... a6 {[%clk 0:03:00.9]} 2. d4 {[%clk 0:03:00.6]}
2... e6 {[%clk 0:03:00.1]} 3. Nf3 {[%clk 0:02:55.1]} 3... d5 {[%clk 0:02:58]} 4.
exd5 {[%clk 0:02:50.6]} 4... exd5 {[%clk 0:02:58.9]} 5. Bd3 {[%clk 0:02:50.6]}
5... c5 {[%clk 0:02:59]} 6. dxc5 {[%clk 0:02:46.2]} 6... Bxc5 {[%clk 0:02:58.6]}
7. O-O {[%clk 0:02:46.9]} 7... Ne7 {[%clk 0:02:45.9]} 8. Nbd2 {[%clk 0:02:34.7]}
8... O-O {[%clk 0:02:43.4]} 9. Nb3 {[%clk 0:02:34.1]} 9... Bb6 {[%clk
0:02:39.3]} 10. h3 {[%clk 0:02:27.6]} 10... Qd6 {[%clk 0:02:35]} 11. Re1 {[%clk
0:02:17.1]} 11... Nbc6 {[%clk 0:01:59.8]} 12. Be3 {[%clk 0:02:14.3]} 12... Bxe3
{[%clk 0:01:36.6]} 13. Rxe3 {[%clk 0:02:13.5]} 13... Nf5 {[%clk 0:01:31.7]} 14.
Re1 {[%clk 0:02:01.2]} 14... Bd7 {[%clk 0:01:30.6]} 15. c3 {[%clk 0:01:58.7]}
15... Rfe8 {[%clk 0:01:23.6]} 16. Qc2 {[%clk 0:01:57.9]} 16... g6 {[%clk
0:01:21.7]} 17. Rad1 {[%clk 0:01:56.9]} 17... Ne5 {[%clk 0:01:08.7]} 18. Nxe5
{[%clk 0:01:51.5]} 18... Rxe5 {[%clk 0:01:08.3]} 19. Rxe5 {[%clk 0:01:51.6]}
19... Qxe5 {[%clk 0:01:08.8]} 20. Bxf5 {[%clk 0:01:50.1]} 20... Bxf5 {[%clk
0:01:08.7]} 21. Qd2 {[%clk 0:01:50.6]} 21... Rd8 {[%clk 0:00:56.4]} 22. Re1
{[%clk 0:01:46.5]} 22... Qd6 {[%clk 0:00:52.4]} 23. Nd4 {[%clk 0:01:41.2]} 23...
Bd7 {[%clk 0:00:50.5]} 24. Qg5 {[%clk 0:01:38]} 24... Re8 {[%clk 0:00:40.5]} 25.
Rxe8+ {[%clk 0:01:35.6]} 25... Bxe8 {[%clk 0:00:40.9]} 26. Qe3 {[%clk
0:01:31.3]} 26... Bd7 {[%clk 0:00:35.4]} 27. Nb3 {[%clk 0:01:30.3]} 27... Qe6
{[%clk 0:00:31]} 28. Qxe6 {[%clk 0:01:25]} 28... fxe6 {[%clk 0:00:28.1]} 29. f4
{[%clk 0:01:23.8]} 29... Kf7 {[%clk 0:00:27.3]} 30. Nc5 {[%clk 0:01:21.6]} 30...
Bc8 {[%clk 0:00:27]} 31. Kf2 {[%clk 0:01:21.6]} 31... Kf6 {[%clk 0:00:22.1]} 32.
Nd3 {[%clk 0:01:16.2]} 32... h6 {[%clk 0:00:21.9]} 33. Ke3 {[%clk 0:01:14.8]}
33... g5 {[%clk 0:00:22]} 34. g4 {[%clk 0:01:14.8]} 34... Bd7 {[%clk 0:00:17.9]}
35. Ne5 {[%clk 0:01:13.9]} 35... Be8 {[%clk 0:00:18]} 36. Nf3 {[%clk 0:01:12.3]}
36... Bg6 {[%clk 0:00:14.6]} 37. h4 {[%clk 0:01:09.2]} 37... gxh4 {[%clk
0:00:12.4]} 38. Nxh4 {[%clk 0:00:58.3]} 38... Be4 {[%clk 0:00:12.6]} 39. c4
{[%clk 0:00:57.4]} 39... b6 {[%clk 0:00:11]} 40. a3 {[%clk 0:00:54.7]} 40... Kf7
{[%clk 0:00:09.5]} 41. g5 {[%clk 0:00:47.6]} 41... h5 {[%clk 0:00:05.7]} 42. Kd4
{[%clk 0:00:46.8]} 42... Ke7 {[%clk 0:00:04]} 43. cxd5 {[%clk 0:00:45]} 43...
exd5 {[%clk 0:00:04.5]} 44. Ke5 {[%clk 0:00:44.8]} 44... Kf7 {[%clk 0:00:04.6]}
45. f5 {[%clk 0:00:44.6]} 45... Kg7 {[%clk 0:00:04.9]} 46. f6+ {[%clk
0:00:42.8]} 46... Kf7 {[%clk 0:00:05.1]} 47. g6+ {[%clk 0:00:43.3]} 47... Bxg6
{[%clk 0:00:04.7]} 48. Nxg6 {[%clk 0:00:44]} 48... Kxg6 {[%clk 0:00:05.3]} 49.
Ke6 {[%clk 0:00:44.6]} 1-0

[Event "Late-Titled-Tuesday-Blitz-April-23-2024"]
[Site "Chess.com"]
[Date "2024.04.23"]
[Round "9"]
[White "ferrufino64"]
[Black "kalinchick"]
[Result "1-0"]
[WhiteElo "2310"]
[BlackElo "2424"]
[TimeControl "180+1"]
[EndTime "15:46:11 PDT"]
[Termination "ferrufino64 won by resignation"]

1. e4 {[%clk 0:03:00.9]} 1... e6 {[%clk 0:03:00.9]} 2. d4 {[%clk 0:03:00.1]}
2... d5 {[%clk 0:03:01.3]} 3. Nd2 {[%clk 0:03:00.7]} 3... c5 {[%clk 0:02:55.7]}
4. exd5 {[%clk 0:03:00.1]} 4... Qxd5 {[%clk 0:02:55]} 5. Ngf3 {[%clk 0:02:59.5]}
5... cxd4 {[%clk 0:02:55.4]} 6. Bc4 {[%clk 0:02:59.4]} 6... Qd6 {[%clk
0:02:55.2]} 7. Nb3 {[%clk 0:02:59]} 7... Nc6 {[%clk 0:02:54.4]} 8. O-O {[%clk
0:02:58.6]} 8... Nf6 {[%clk 0:02:53.6]} 9. Nbxd4 {[%clk 0:02:58.8]} 9... Nxd4
{[%clk 0:02:53.6]} 10. Qxd4 {[%clk 0:02:59]} 10... Qxd4 {[%clk 0:02:51.9]} 11.
Nxd4 {[%clk 0:02:59.2]} 11... Bc5 {[%clk 0:02:52.5]} 12. Nb3 {[%clk 0:02:55.7]}
12... Bb6 {[%clk 0:02:49.8]} 13. a4 {[%clk 0:02:55.9]} 13... a5 {[%clk
0:02:46.3]} 14. Bg5 {[%clk 0:02:52.9]} 14... Ke7 {[%clk 0:02:42.8]} 15. Rfd1
{[%clk 0:02:49.8]} 15... Bd7 {[%clk 0:02:41.4]} 16. Kf1 {[%clk 0:02:49.1]} 16...
Rhd8 {[%clk 0:02:40.4]} 17. f3 {[%clk 0:02:36.9]} 17... Be8 {[%clk 0:02:37.3]}
18. Rxd8 {[%clk 0:02:35.7]} 18... Rxd8 {[%clk 0:02:36.1]} 19. Ke2 {[%clk
0:02:36.1]} 19... h6 {[%clk 0:02:30.7]} 20. Bd2 {[%clk 0:02:36]} 20... Ra8
{[%clk 0:02:30]} 21. Bc3 {[%clk 0:02:32.5]} 21... g6 {[%clk 0:02:24.8]} 22. Nd4
{[%clk 0:02:31.3]} 22... Nd7 {[%clk 0:02:09]} 23. Nb5 {[%clk 0:02:21.4]} 23...
Nc5 {[%clk 0:01:57.5]} 24. b3 {[%clk 0:02:16.3]} 24... Rd8 {[%clk 0:01:51.2]}
25. h4 {[%clk 0:02:12.6]} 25... Bc6 {[%clk 0:01:42.7]} 26. g4 {[%clk 0:02:12.2]}
26... Bd5 {[%clk 0:01:28.3]} 27. Bxd5 {[%clk 0:02:00.3]} 27... Rxd5 {[%clk
0:01:29.2]} 28. b4 {[%clk 0:01:51.9]} 28... axb4 {[%clk 0:01:12.7]} 29. Bxb4
{[%clk 0:01:52.8]} 29... Ke8 {[%clk 0:01:09.4]} 30. c4 {[%clk 0:01:49.9]} 30...
Re5+ {[%clk 0:00:58.2]} 31. Kf1 {[%clk 0:01:44.4]} 31... Re3 {[%clk 0:00:52.9]}
32. Kg2 {[%clk 0:01:39.9]} 32... Nd3 {[%clk 0:00:50.1]} 33. Bd6 {[%clk
0:01:29.8]} 33... h5 {[%clk 0:00:35.9]} 34. gxh5 {[%clk 0:01:27.6]} 34... gxh5
{[%clk 0:00:36.8]} 35. a5 {[%clk 0:01:27.9]} 35... Bd8 {[%clk 0:00:37]} 36. Bg3
{[%clk 0:01:24.7]} 36... Ne5 {[%clk 0:00:35.3]} 37. Nd6+ {[%clk 0:01:22.1]}
37... Kd7 {[%clk 0:00:32]} 38. Nxb7 {[%clk 0:01:22]} 38... Bc7 {[%clk
0:00:18.6]} 39. a6 {[%clk 0:01:18]} 39... Nc6 {[%clk 0:00:14.8]} 40. Nc5+ {[%clk
0:01:02]} 40... Kc8 {[%clk 0:00:13.9]} 41. Bxc7 {[%clk 0:01:00.9]} 41... Kxc7
{[%clk 0:00:14.8]} 42. a7 {[%clk 0:01:01.5]} 42... Nxa7 {[%clk 0:00:14.3]} 43.
Rxa7+ {[%clk 0:01:02.2]} 43... Kd6 {[%clk 0:00:11.9]} 44. Ne4+ {[%clk
0:01:01.3]} 44... Ke5 {[%clk 0:00:12.1]} 45. Rxf7 {[%clk 0:01:00.9]} 45... Re2+
{[%clk 0:00:12.1]} 46. Kg3 {[%clk 0:01:01.2]} 46... Rc2 {[%clk 0:00:11.9]} 47.
c5 {[%clk 0:01:01.7]} 47... Kd5 {[%clk 0:00:10.8]} 48. Rh7 {[%clk 0:01:01.9]}
48... e5 {[%clk 0:00:10.5]} 49. Rxh5 {[%clk 0:01:02]} 49... Rc1 {[%clk
0:00:11.4]} 50. Rg5 {[%clk 0:01:01.8]} 50... Rg1+ {[%clk 0:00:11.4]} 51. Kh3
{[%clk 0:01:02.2]} 51... Rh1+ {[%clk 0:00:11.7]} 52. Kg4 {[%clk 0:01:02.6]}
52... Kd4 {[%clk 0:00:10.2]} 53. h5 {[%clk 0:01:02.2]} 53... Rg1+ {[%clk
0:00:09.1]} 54. Kf5 {[%clk 0:01:02.4]} 54... Rf1 {[%clk 0:00:08.9]} 55. Rg3
{[%clk 0:01:02.6]} 55... Rh1 {[%clk 0:00:08.8]} 56. Kg6 {[%clk 0:01:02.6]} 56...
Ke3 {[%clk 0:00:08.7]} 57. h6 {[%clk 0:01:03]} 57... Kf4 {[%clk 0:00:09.3]} 58.
h7 {[%clk 0:01:03]} 58... Rh2 {[%clk 0:00:04.5]} 59. Kg7 {[%clk 0:01:03]} 1-0

[Event "Late-Titled-Tuesday-Blitz-April-23-2024"]
[Site "Chess.com"]
[Date "2024.04.23"]
[Round "9"]
[White "jaramsdal"]
[Black "gorgeous1083"]
[Result "0-1"]
[WhiteElo "2223"]
[BlackElo "2104"]
[TimeControl "180+1"]
[EndTime "15:46:13 PDT"]
[Termination "gorgeous1083 won on time"]

1. e4 {[%clk 0:03:00.9]} 1... e5 {[%clk 0:03:00.1]} 2. Nf3 {[%clk 0:02:59.7]}
2... Nc6 {[%clk 0:03:00.8]} 3. Bc4 {[%clk 0:03:00]} 3... Bc5 {[%clk 0:03:00.1]}
4. d3 {[%clk 0:02:58.9]} 4... Nf6 {[%clk 0:03:00.3]} 5. c3 {[%clk 0:02:59.3]}
5... d6 {[%clk 0:02:58.9]} 6. O-O {[%clk 0:02:55.6]} 6... h6 {[%clk 0:02:58.1]}
7. a4 {[%clk 0:02:52.9]} 7... O-O {[%clk 0:02:58.4]} 8. h3 {[%clk 0:02:40.3]}
8... a5 {[%clk 0:02:52.7]} 9. Re1 {[%clk 0:02:16.6]} 9... Qe7 {[%clk 0:02:50.1]}
10. Nbd2 {[%clk 0:02:14.5]} 10... Be6 {[%clk 0:02:48.6]} 11. Bb5 {[%clk
0:02:14.7]} 11... Rac8 {[%clk 0:02:37.2]} 12. Nf1 {[%clk 0:02:00.7]} 12... Na7
{[%clk 0:02:34.2]} 13. Bc4 {[%clk 0:01:59.7]} 13... Bxc4 {[%clk 0:02:26.1]} 14.
dxc4 {[%clk 0:02:00.6]} 14... Nc6 {[%clk 0:02:21.1]} 15. Ng3 {[%clk 0:01:49.4]}
15... Qe8 {[%clk 0:02:09.8]} 16. Nh4 {[%clk 0:01:44.6]} 16... Ne7 {[%clk
0:02:08.3]} 17. Nhf5 {[%clk 0:01:43.4]} 17... Kh7 {[%clk 0:01:56.9]} 18. Qf3
{[%clk 0:01:24.7]} 18... Nfg8 {[%clk 0:01:39]} 19. Nxg7 {[%clk 0:00:58.6]} 19...
Kxg7 {[%clk 0:01:30.9]} 20. Nh5+ {[%clk 0:00:58]} 20... Kh7 {[%clk 0:01:19.6]}
21. Qg4 {[%clk 0:00:21.1]} 21... Ng6 {[%clk 0:01:12.8]} 22. b4 {[%clk
0:00:19.9]} 22... axb4 {[%clk 0:01:10]} 23. cxb4 {[%clk 0:00:20.8]} 23... Bd4
{[%clk 0:01:09.5]} 24. Ra3 {[%clk 0:00:20.3]} 24... Qe6 {[%clk 0:01:00.1]} 25.
Qe2 {[%clk 0:00:19.2]} 25... f5 {[%clk 0:00:56]} 26. Rg3 {[%clk 0:00:16.1]}
26... f4 {[%clk 0:00:53]} 27. Rg4 {[%clk 0:00:15.1]} 27... Nf6 {[%clk
0:00:48.8]} 28. Nxf6+ {[%clk 0:00:09.1]} 28... Rxf6 {[%clk 0:00:48.8]} 29. Kh2
{[%clk 0:00:07]} 29... Rcf8 {[%clk 0:00:44.4]} 30. f3 {[%clk 0:00:07.2]} 30...
Rg8 {[%clk 0:00:42.9]} 31. Rd1 {[%clk 0:00:06.8]} 31... Rf7 {[%clk 0:00:38.7]}
32. Bb2 {[%clk 0:00:02.4]} 32... Bxb2 {[%clk 0:00:36.3]} 33. Qxb2 {[%clk
0:00:03.3]} 33... Qxc4 {[%clk 0:00:34]} 34. Rc1 {[%clk 0:00:03.9]} 34... Qe6
{[%clk 0:00:30.8]} 35. b5 {[%clk 0:00:04]} 35... b6 {[%clk 0:00:30.2]} 36. Qc3
{[%clk 0:00:03]} 36... Rgg7 {[%clk 0:00:27.2]} 37. a5 {[%clk 0:00:03]} 37...
bxa5 {[%clk 0:00:26.8]} 38. Qxa5 {[%clk 0:00:03.9]} 38... Qb3 {[%clk 0:00:20.8]}
0-1

[Event "Late-Titled-Tuesday-Blitz-April-23-2024"]
[Site "Chess.com"]
[Date "2024.04.23"]
[Round "9"]
[White "karinachess1"]
[Black "teresin05"]
[Result "1-0"]
[WhiteElo "2581"]
[BlackElo "2329"]
[TimeControl "180+1"]
[EndTime "15:46:15 PDT"]
[Termination "karinachess1 won on time"]

1. c4 {[%clk 0:03:00.9]} 1... c5 {[%clk 0:02:58.6]} 2. Nf3 {[%clk 0:03:00.7]}
2... Nc6 {[%clk 0:02:59]} 3. d4 {[%clk 0:03:00.9]} 3... cxd4 {[%clk 0:02:58.5]}
4. Nxd4 {[%clk 0:03:01.8]} 4... Nf6 {[%clk 0:02:54.8]} 5. Nc3 {[%clk 0:03:02.1]}
5... e6 {[%clk 0:02:53.7]} 6. a3 {[%clk 0:03:02.6]} 6... d5 {[%clk 0:02:53.7]}
7. e3 {[%clk 0:02:56.7]} 7... Be7 {[%clk 0:02:50.7]} 8. Be2 {[%clk 0:02:50.6]}
8... O-O {[%clk 0:02:45.9]} 9. O-O {[%clk 0:02:50.2]} 9... dxc4 {[%clk
0:02:44.3]} 10. Nxc6 {[%clk 0:02:50.5]} 10... bxc6 {[%clk 0:02:38.3]} 11. Bxc4
{[%clk 0:02:50.6]} 11... Qxd1 {[%clk 0:02:31.5]} 12. Rxd1 {[%clk 0:02:51.5]}
12... Bb7 {[%clk 0:02:30.9]} 13. e4 {[%clk 0:02:52]} 13... Rfd8 {[%clk
0:02:30.6]} 14. Bf4 {[%clk 0:02:45.8]} 14... c5 {[%clk 0:02:28.6]} 15. f3 {[%clk
0:02:44.9]} 15... h6 {[%clk 0:02:18.4]} 16. Kf2 {[%clk 0:02:41.1]} 16... Kf8
{[%clk 0:02:05.5]} 17. Bc7 {[%clk 0:02:35.7]} 17... Rdc8 {[%clk 0:02:02.7]} 18.
Be5 {[%clk 0:02:36]} 18... Rd8 {[%clk 0:02:01.1]} 19. Nb5 {[%clk 0:02:35.1]}
19... Ne8 {[%clk 0:01:45.3]} 20. Ke2 {[%clk 0:02:03.3]} 20... Bc6 {[%clk
0:01:40]} 21. Nc3 {[%clk 0:01:52.1]} 21... Nd6 {[%clk 0:01:34.9]} 22. Ba6 {[%clk
0:01:51.8]} 22... f6 {[%clk 0:01:13.5]} 23. Bg3 {[%clk 0:01:47.3]} 23... Rab8
{[%clk 0:01:11]} 24. Rd2 {[%clk 0:01:44.8]} 24... Rb6 {[%clk 0:01:07.8]} 25.
Rad1 {[%clk 0:01:30.9]} 25... Rxa6 {[%clk 0:00:54.5]} 26. Bxd6 {[%clk
0:01:31.2]} 26... Bxd6 {[%clk 0:00:48.5]} 27. Rxd6 {[%clk 0:01:32.1]} 27... Rxd6
{[%clk 0:00:48.6]} 28. Rxd6 {[%clk 0:01:33]} 28... Ke7 {[%clk 0:00:49]} 29. Rd2
{[%clk 0:01:32]} 29... Rb6 {[%clk 0:00:47.9]} 30. Kd1 {[%clk 0:01:29.5]} 30...
Rb7 {[%clk 0:00:46]} 31. Kc2 {[%clk 0:01:29.6]} 31... Rd7 {[%clk 0:00:44.3]} 32.
Ne2 {[%clk 0:01:19.7]} 32... Rxd2+ {[%clk 0:00:42]} 33. Kxd2 {[%clk 0:01:20.6]}
33... Kd6 {[%clk 0:00:42.5]} 34. Nf4 {[%clk 0:01:19.3]} 34... Ke5 {[%clk
0:00:41.1]} 35. Ke3 {[%clk 0:01:16.6]} 35... Bb5 {[%clk 0:00:25.8]} 36. Nh5
{[%clk 0:01:16.2]} 36... g6 {[%clk 0:00:24.4]} 37. f4+ {[%clk 0:01:15.2]} 37...
Kd6 {[%clk 0:00:19.2]} 38. Nxf6 {[%clk 0:01:16.1]} 38... e5 {[%clk 0:00:17.3]}
39. g3 {[%clk 0:01:13.3]} 39... Ke6 {[%clk 0:00:14.5]} 40. Ng4 {[%clk
0:01:10.1]} 40... exf4+ {[%clk 0:00:15]} 41. gxf4 {[%clk 0:01:10.7]} 41... h5
{[%clk 0:00:15.9]} 42. Nf2 {[%clk 0:01:07.4]} 42... Bf1 {[%clk 0:00:14.2]} 43.
h4 {[%clk 0:01:07.2]} 43... Bb5 {[%clk 0:00:10.1]} 44. Nd3 {[%clk 0:01:04]}
44... Kd6 {[%clk 0:00:10.6]} 45. Ne5 {[%clk 0:01:03.2]} 45... Be8 {[%clk
0:00:11.3]} 46. Kd3 {[%clk 0:00:58.9]} 46... a6 {[%clk 0:00:11.3]} 47. Nc4+
{[%clk 0:00:54.1]} 47... Kc6 {[%clk 0:00:09.7]} 48. Kc3 {[%clk 0:00:47.5]} 48...
Kc7 {[%clk 0:00:02.8]} 49. Ne5 {[%clk 0:00:46.7]} 49... Kd6 {[%clk 0:00:02.7]}
50. b3 {[%clk 0:00:40.8]} 1-0

[Event "Late-Titled-Tuesday-Blitz-April-23-2024"]
[Site "Chess.com"]
[Date "2024.04.23"]
[Round "9"]
[White "stollenmonster"]
[Black "Airquake"]
[Result "1-0"]
[WhiteElo "2907"]
[BlackElo "2667"]
[TimeControl "180+1"]
[EndTime "15:46:16 PDT"]
[Termination "stollenmonster won on time"]

1. e4 {[%clk 0:03:00.9]} 1... c5 {[%clk 0:02:59.7]} 2. Nf3 {[%clk 0:02:58.2]}
2... d6 {[%clk 0:02:59.8]} 3. d4 {[%clk 0:02:54.3]} 3... cxd4 {[%clk 0:03:00.7]}
4. Nxd4 {[%clk 0:02:54.8]} 4... Nf6 {[%clk 0:02:59.4]} 5. Nc3 {[%clk 0:02:55.2]}
5... a6 {[%clk 0:02:59]} 6. a4 {[%clk 0:02:54.9]} 6... Qc7 {[%clk 0:02:54.8]} 7.
g3 {[%clk 0:02:55]} 7... g6 {[%clk 0:02:50.1]} 8. Bg2 {[%clk 0:02:54.6]} 8...
Bg7 {[%clk 0:02:50.7]} 9. h3 {[%clk 0:02:54.9]} 9... O-O {[%clk 0:02:50.7]} 10.
O-O {[%clk 0:02:54.5]} 10... Nc6 {[%clk 0:02:51]} 11. Nde2 {[%clk 0:02:55]}
11... Bd7 {[%clk 0:02:47.9]} 12. Nd5 {[%clk 0:02:55.4]} 12... Nxd5 {[%clk
0:02:47.7]} 13. exd5 {[%clk 0:02:56.3]} 13... Ne5 {[%clk 0:02:43.9]} 14. Ra2
{[%clk 0:02:54]} 14... b5 {[%clk 0:02:23.8]} 15. axb5 {[%clk 0:02:47.1]} 15...
axb5 {[%clk 0:02:21.9]} 16. Rxa8 {[%clk 0:02:47.5]} 16... Rxa8 {[%clk
0:02:21.6]} 17. b3 {[%clk 0:02:48.3]} 17... Bc8 {[%clk 0:01:43.5]} 18. Nd4
{[%clk 0:02:40.1]} 18... Ra2 {[%clk 0:01:42.2]} 19. Be3 {[%clk 0:02:35]} 19...
Qc3 {[%clk 0:01:24.2]} 20. Qb1 {[%clk 0:02:12.3]} 20... Rb2 {[%clk 0:01:24.1]}
21. Qa1 {[%clk 0:02:09.6]} 21... Bf5 {[%clk 0:00:29.9]} 22. Nc6 {[%clk
0:02:02.4]} 22... Nxc6 {[%clk 0:00:12]} 23. dxc6 {[%clk 0:01:56.7]} 23... h5
{[%clk 0:00:11.7]} 24. Qa8+ {[%clk 0:01:39.4]} 24... Kh7 {[%clk 0:00:11.7]} 25.
Qe8 {[%clk 0:01:37.1]} 25... Be6 {[%clk 0:00:11.7]} 26. Qxe7 {[%clk 0:01:18.7]}
26... d5 {[%clk 0:00:12.2]} 27. g4 {[%clk 0:01:00.7]} 27... hxg4 {[%clk
0:00:09.7]} 28. hxg4 {[%clk 0:01:01.6]} 28... Qxc6 {[%clk 0:00:08.7]} 29. Ra1
{[%clk 0:00:56.7]} 29... Rxc2 {[%clk 0:00:07.4]} 30. Qh4+ {[%clk 0:00:57]} 30...
Kg8 {[%clk 0:00:06.7]} 31. Ra7 {[%clk 0:00:47.3]} 31... Qe8 {[%clk 0:00:07.3]}
32. Re7 {[%clk 0:00:43.4]} 32... Qd8 {[%clk 0:00:06.6]} 33. Bg5 {[%clk
0:00:40.8]} 33... Qc8 {[%clk 0:00:07.1]} 34. Bf6 {[%clk 0:00:22]} 34... Rc1+
{[%clk 0:00:07.4]} 35. Bf1 {[%clk 0:00:22.4]} 35... d4 {[%clk 0:00:07.1]} 36.
Bxg7 {[%clk 0:00:12.7]} 36... Kxg7 {[%clk 0:00:07.3]} 37. g5 {[%clk 0:00:13.3]}
37... Qc5 {[%clk 0:00:07.8]} 38. Qh6+ {[%clk 0:00:12.4]} 1-0